[Event "European Corporate Championship 2022"]
[Site "Rotterdam"]
[Date "2022.06.18"]
[Round "4.18"]
[White "Geldhof, Alexander"]
[Black "Flynn, Jacob"]
[Result "1/2-1/2"]
[ECO "C50"]
[WhiteElo "1833"]
[BlackElo "2205"]
[Annotator "TA"]
[PlyCount "97"]
[EventDate "2022.06.18"]
[EventType "team-tourn"]
[EventCountry "NED"]
[SourceTitle "playchess.com"]
[Source "ChessBase"]
[SourceQuality "1"]
[TimeControl "900+5"]

{[%evp 10,97,23,17,20,13,14,-70,14,16,14,-83,-83,-84,-84,-116,-115,-150,-113,-108,-107,-96,-87,-97,-75,-61,39,49,47,0,0,0,0,0,10,10,110,12,22,8,131,118,141,149,170,-116,133,133,132,119,134,137,209,155,163,142,180,147,143,121,131,-125,109,-147,-151,-151,-146,-246,-238,-199,-131,-137,-108,-122,-112,-123,-123,-118,-65,-60,0,0,0,-52,-44,-65,302,288,278,247]} 1. e4 {[%emt 0:00:02]} e5 {[%emt 0:00:04]} 2. Nf3 {[%emt 0:00:01]} Nc6 {[%emt 0:00:01]} 3. Bc4 {[%emt 0:00:01]} Nf6 {[%emt 0:00:03]} 4. d3 {[%emt 0:00:03]} Bc5 {[%emt 0:00:02]} 5. Bg5 {[%emt 0:00:03]} h6 {[%emt 0:00:02]} 6. Bh4 {[%emt 0:00:01]} Be7 {[%emt 0:00:38] C50: Hungarian Defence and Giuoco Pianissimo.} 7. Nc3 {[%emt 0:01:03]} d6 {[%emt 0:00:40][%cal Of6e4]} 8. h3 {[%emt 0:00:25] [#]} ({White should play} 8. a4 $11) 8... Be6 {[%emt 0:01:09] [#]} (8... Nxe4 $1 $15 9. Bxe7 Nxc3 10. Bxd8 Nxd1 11. Bxc7 Nxb2 12. Bxd6 Nxc4 13. dxc4 f6) 9. Bxe6 $146 {[%emt 0:02:09]} ({Predecessor:} 9. Bxf6 Bxf6 10. Nd5 Bxd5 11. Bxd5 Qd7 12. c3 Ne7 13. Bb3 c6 14. d4 O-O 15. dxe5 {1-0 (39) Vlassov,N (2352)-Shahade,G (2476) Chess.com INT 2020}) 9... fxe6 {[%emt 0:00:02]} 10. Qd2 {[%emt 0:00:04] [#]} (10. d4 $11 {remains equal.}) 10... Nxe4 $1 $17 {[%emt 0:00:42]} 11. Nxe4 {[%emt 0:00:59]} Bxh4 {[%emt 0:00:02]} 12. O-O-O {[%emt 0:00:40]} Be7 {[%emt 0:01:16]} 13. Kb1 {[%emt 0:00:48]} Qd7 {[%emt 0:01:07]} 14. d4 {[%emt 0:00:03]} exd4 $1 {[%emt 0:00:54]} 15. Nxd4 {[%emt 0:00:07]} O-O-O {[%emt 0:01:23]} 16. Rhe1 {[%emt 0:00:45]} d5 {[%emt 0:00:53]} 17. Nc3 {[%emt 0:02:47]} Bb4 {[%emt 0:03:03]} (17... Bg5 $15 18. f4 Bh4) 18. Nxe6 $14 {[%emt 0:01:04]} Rde8 {[%emt 0:00:11]} 19. Nd4 {[%emt 0:00:41] Pair of Knights!} (19. Qxd5 $14 Qxd5 20. Rxd5) 19... Ne5 $11 {[%emt 0:00:25]} 20. a3 {[%emt 0:01:15]} Nc4 {[%emt 0:00:54]} 21. Qd3 {[%emt 0:00:42]} Bxc3 {[%emt 0:01:30]} 22. Qxc3 {[%emt 0:00:17]} Nd6 {[%emt 0:00:29]} (22... Rxe1 $11 {keeps the balance.} 23. Rxe1 b6) 23. f3 {[%emt 0:00:38] White is more active.} (23. Qc5 $16) 23... Kb8 {[%emt 0:00:25]} 24. Nb3 {[%emt 0:00:31]} Nc4 {[%emt 0:00:24]} (24... Rxe1 $11 25. Rxe1 b6) 25. Rxe8+ $16 {[%emt 0:00:27]} Qxe8 {[%emt 0:00:38]} 26. Rxd5 {[%emt 0:00:05]} Nb6 {[%emt 0:00:02]} 27. Rc5 {[%emt 0:00:23]} (27. Rd4 $18) 27... Qf7 $2 {[%emt 0:00:04]} (27... Na4 $17 {stays on course.} 28. Qd4 (28. Qxg7 Nxc5 29. Nxc5 Rg8 $15) 28... Nxc5 29. Nxc5 Qe2) 28. Re5 {[%emt 0:00:50][%cal Bc5e5,Be5e1,Be1d1][%mdl 32]} Rd8 {[%emt 0:00:04]} 29. Re1 {[%emt 0:00:12]} Nd5 {[%emt 0:00:10]} 30. Qd4 {[%emt 0:00:16] Hoping for c4.} Rf8 {[%emt 0:00:11]} (30... Qf8 $16 {is a better defense.} 31. Nc5 Nf6) 31. Rd1 {[%emt 0:00:05]} c6 {[%emt 0:00:01]} 32. Nc5 {[%emt 0:00:04]} Re8 {[%emt 0:00:04]} 33. Ne4 {[%emt 0:00:02] Threatens to win with Nd6.} Qc7 {[%emt 0:00:07] Inhibits Nd6.} 34. Qc5 {[%emt 0:00:05]} Rd8 {[%emt 0:00:04]} 35. Ka2 $2 {[%emt 0:00:04][%mdl 8192] [#]} (35. h4 $16 {keeps the pressure on.}) 35... b6 $2 {[%emt 0:00:03]} (35... Nb4+ $1 $17 {[%mdl 512]} 36. Qxb4 Rxd1) 36. Qf2 $2 {[%emt 0:00:02][%mdl 8192] [#]} (36. Qg1 $16 {is forced if you want to stay better.}) 36... Nb4+ $1 $17 {[%emt 0:00:04][%mdl 576] Discovered Attack} 37. axb4 {[%emt 0:00:03]} Rxd1 {[%emt 0:00:01][%mdl 4096] Endgame KQR-KQN} 38. Qh4 {[%emt 0:00:15]} (38. Nc3 $17 Qf7+ 39. b3) 38... Qf7+ $19 {[%emt 0:00:06]} 39. b3 {[%emt 0:00:05]} Rd7 {[%emt 0:00:07]} (39... a5 $19 40. Nc3 Rd2) 40. Qg3+ $17 {[%emt 0:00:01]} Rc7 {[%emt 0:00:08]} 41. Nd6 {[%emt 0:00:05]} Qd7 {[%emt 0:00:07]} 42. c4 {[%emt 0:00:08]} Ka8 {[%emt 0:00:09]} 43. c5 {[%emt 0:00:02] [#]} b5 {[%emt 0:00:02]} ({Better is} 43... Qd8 $1 $17 44. Qf4 Re7) 44. Qf4 $15 {[%emt 0:00:00] aiming for Qf8+.} a6 {[%emt 0:00:03]} (44... Qe7 $15) 45. Qf8+ $11 {[%emt 0:00:02]} Ka7 {[%emt 0:00:02]} 46. Qf4 {[%emt 0:00:02]} (46. f4 $11) 46... Qe7 {[%emt 0:00:06]} 47. Ka3 {[%emt 0:00:09]} Qf6 $2 {[%emt 0:00:03][%mdl 8192] [#]} (47... Kb8 $15 {keeps the upper hand.}) 48. Nxb5+ $1 $18 {[%emt 0:00:02][%mdl 576] Discovered Attack} axb5 {[%emt 0:00:06][%cal Rf6a1]} 49. Qxc7+ {[%emt 0:00:01] Weighted Error Value: White=0.53/Black=0.57} 1/2-1/2

[Event "European Corporate Championship 2022"]
[Site "Rotterdam"]
[Date "2022.06.18"]
[Round "4.19"]
[White "Melaugh, Shane"]
[Black "Toledano Llinares, Juan A."]
[Result "1-0"]
[ECO "E73"]
[WhiteElo "2087"]
[BlackElo "2252"]
[Annotator "TA"]
[PlyCount "46"]
[EventDate "2022.06.18"]
[EventType "team-tourn"]
[EventCountry "NED"]
[SourceTitle "playchess.com"]
[Source "ChessBase"]
[SourceQuality "1"]
[TimeControl "900+5"]

{[%evp 9,46,52,58,52,65,13,99,84,92,90,92,85,93,92,295,279,402,377,1157,1247,1256,1222,1230,1173,1254,1239,1692,1627,4111,3923,29994,29993,29997,29994,29994,29993,29993,29994,29999]} 1. c4 {[%emt 0:00:02]} Nf6 {[%emt 0:00:09]} 2. Nc3 {[%emt 0:00:02]} g6 {[%emt 0:00:07]} 3. d4 {[%emt 0:00:03]} Bg7 {[%emt 0:00:02]} 4. e4 {[%emt 0:00:01]} d6 {[%emt 0:00:03]} 5. Be2 {[%emt 0:00:02]} b6 {[%emt 0:00:30]} 6. Be3 {[%emt 0:00:14] E73: King's Indian: Averbakh Variation without 6...c5.} (6. f4 {seems wilder.} Bb7 7. e5 Bxg2 8. Bf3) 6... Nbd7 {[%emt 0:00:10]} 7. g4 {[%emt 0:00:10] [#]} (7. Nf3 $14) 7... e6 $146 {[%emt 0:00:18]} (7... h5 $11) ({Predecessor:} 7... h6 8. Qd2 Bb7 9. f3 e5 10. d5 g5 11. Bd3 a6 12. Nge2 Nf8 13. Ng3 Bc8 {½-½ (31) Serban,C (1866)-Coman,G (1404) Baile Felix 2017}) 8. g5 $16 {[%emt 0:00:05] White is better.} Ng8 {[%emt 0:00:06]} 9. Qc2 {[%emt 0:00:11] White is more active.} Bb7 {[%emt 0:00:07]} 10. O-O-O {[%emt 0:00:09]} Qe7 {[%emt 0:00:07]} 11. Nb5 {[%emt 0:00:18]} Nf8 $2 {[%emt 0:00:28] [#] This move loses the game for Black.} (11... Qd8 $16 {was worth a try.}) 12. c5 $1 $18 {[%emt 0:00:22]} bxc5 {[%emt 0:01:44]} (12... f5 $142) 13. dxc5 {[%emt 0:00:03][%cal Bd4c5,Bc5d6][%mdl 32]} a6 $2 {[%emt 0:00:39]} (13... d5 14. Nf3 Qd8) 14. cxd6 {[%emt 0:00:06]} Qd7 {[%emt 0:01:48]} 15. Nxc7+ {[%emt 0:02:28]} Kd8 {[%emt 0:00:39]} 16. Bb6 {[%emt 0:00:31] [#] White threatens Nxe6+ and mate.} Kc8 {[%emt 0:00:57]} 17. Nxa8+ {[%emt 0:00:43]} Kb8 {[%emt 0:00:02]} 18. Nc7 {[%emt 0:00:08]} h6 {[%emt 0:00:30]} 19. Nxa6+ {[%emt 0:00:24]} Bxa6 {[%emt 0:00:33]} 20. Bxa6 {[%emt 0:00:04] White mates.} hxg5 {[%emt 0:00:04]} 21. Bc7+ {[%emt 0:00:04]} Ka8 {[%emt 0:00:26]} 22. Bb7+ {[%emt 0:00:14]} Kxb7 {[%emt 0:00:14]} 23. Qb3+ {[%emt 0:00:02]} Kc8 {[%emt 0:02:00] Weighted Error Value: White=0.09 (flawless) /Black=0.98} 1-0

[Event "European Corporate Championship 2022"]
[Site "Rotterdam"]
[Date "2022.06.19"]
[Round "7.1"]
[White "Warmerdam, Max"]
[Black "Van Wely, Loek"]
[Result "1-0"]
[ECO "B07"]
[WhiteElo "2614"]
[BlackElo "2618"]
[Annotator "TA"]
[PlyCount "127"]
[EventDate "2022.06.18"]
[EventType "team-tourn"]
[EventCountry "NED"]
[SourceTitle "playchess.com"]
[Source "ChessBase"]
[SourceQuality "1"]
[TimeControl "900+5"]

{[%evp 9,127,37,60,48,58,48,50,62,59,62,56,61,77,90,133,125,118,76,70,68,72,59,60,44,44,28,26,19,27,29,58,37,48,37,52,-30,-20,-23,0,-24,-26,-26,-27,-27,-19,-69,-29,-28,-9,-52,-44,-39,-23,-27,-19,-31,-31,-27,-23,-64,-74,-89,-83,-77,-58,-66,0,0,0,-66,0,0,0,0,76,28,131,127,127,122,325,284,366,359,345,348,454,474,544,495,580,566,545,480,566,449,510,480,449,407,804,668,900,895,858,870,706,690,1133,1002,1529,1481,2797,2676,2190,2037,29973,29974,6087,5708]} 1. e4 {[%emt 0:00:04]} d6 {[%emt 0:00:01]} 2. d4 {[%emt 0:00:02][%cal Bd2d4,Bd4e5,Be5f6][%mdl 32]} Nf6 {[%emt 0:00:01]} 3. Bd3 {[%emt 0:00:01]} e5 {[%emt 0:00:11]} 4. c3 {[%emt 0:00:02]} d5 {[%emt 0:00:34]} 5. dxe5 {[%emt 0:00:01]} dxe4 {[%emt 0:00:37]} 6. Bb5+ {[%emt 0:01:00] B07: Pirc Defence: Miscellaneous Systems.} c6 {[%emt 0:00:03] [#] ...Qxd1+ is the strong threat.} 7. Qxd8+ {[%emt 0:00:54]} Kxd8 {[%emt 0:00:02]} 8. exf6 {[%emt 0:00:20] White is slightly better.} cxb5 {[%emt 0:14:16]} 9. Bg5 {[%emt 0:00:02]} Kc7 {[%emt 0:00:00]} 10. Nd2 {[%emt 0:00:26]} Bf5 {[%emt 0:00:00]} 11. Ne2 {[%emt 0:00:21] [#]} Nc6 $146 {[%emt 0:00:00]} ({Predecessor:} 11... Nd7 12. Nd4 Bg6 13. Nxb5+ Kb6 14. fxg7 Bxg7 15. a4 Nc5 16. Be3 Kc6 17. O-O Rhd8 {1-0 (66) Matlakov,M (2674)-Pakleza,Z (2505) Chess.com INT 2022}) 12. Ng3 {[%emt 0:00:27][%csl LRe4,LRf5]} Bg6 {[%emt 0:00:00]} 13. Bf4+ {[%emt 0:00:36]} Kb6 {[%emt 0:00:00]} 14. Ndxe4 {[%emt 0:01:05] White is more active.} Re8 {[%emt 0:00:00][%csl LRe4,LRf6]} 15. f3 {[%emt 0:00:17]} gxf6 {[%emt 0:00:00] [#] Threatens to win with ...f5.} 16. O-O-O {[%emt 0:00:09]} Re6 {[%emt 0:00:00]} 17. Rd7 {[%emt 0:01:12]} Ne5 {[%emt 0:00:00]} 18. Rd5 {[%emt 0:00:28]} Be7 {[%emt 0:00:00]} 19. Rhd1 {[%emt 0:00:16]} Kc6 {[%emt 0:00:00] Inhibits Nd6.} 20. Ne2 {[%emt 0:03:29] Pair of Knights!} Nc4 {[%emt 0:00:00] Inhibits R5d2.} 21. R5d4 {[%emt 0:01:56][%cal Oa2a4]} Re8 {[%emt 0:00:00]} 22. g4 {[%emt 0:00:34]} (22. a4 $14) 22... Bc5 $11 {[%emt 0:00:00]} 23. Nxc5 {[%emt 0:00:59]} Rxe2 {[%emt 0:00:00]} 24. Ne4 {[%emt 0:00:27] The board is on fire.} Bxe4 {[%emt 0:00:00]} 25. fxe4 {[%emt 0:00:01]} R8xe4 {[%emt 0:00:00]} 26. Rxe4 {[%emt 0:00:02]} Rxe4 {[%emt 0:00:00][%mdl 4096] Endgame KRB-KRN} 27. Rf1 {[%emt 0:00:05]} (27. Bb8 $11) 27... Kd5 {[%emt 0:00:00]} (27... Kd7 $5 {[%cal Rd7e6]}) 28. b3 $1 {[%emt 0:00:36]} Nb6 {[%emt 0:00:07]} 29. Bb8 {[%emt 0:00:34]} Ke6 {[%emt 0:00:29]} 30. h3 {[%emt 0:00:53]} Nd5 {[%emt 0:00:10]} 31. Kd2 {[%emt 0:00:01]} a6 {[%emt 0:00:15]} 32. Rf5 {[%emt 0:00:01]} b4 {[%emt 0:00:29]} 33. c4 {[%emt 0:00:01]} Rd4+ {[%emt 0:00:01]} 34. Ke2 {[%emt 0:00:10]} Nc3+ {[%emt 0:00:07]} 35. Ke3 {[%emt 0:00:02]} Rd1 {[%emt 0:00:05]} 36. Ba7 {[%emt 0:00:08]} Rh1 {[%emt 0:00:17]} 37. Rf3 {[%emt 0:00:03]} Re1+ {[%emt 0:00:09]} (37... Nxa2 $15 38. Bd4 f5) 38. Kd3 {[%emt 0:00:06]} Rd1+ {[%emt 0:00:06]} 39. Ke3 {[%emt 0:00:02]} (39. Kc2 $11 Rh1 40. Bd4) 39... Re1+ {[%emt 0:00:08]} ({Black should try} 39... Nxa2 $15 40. Bd4 Nc1 41. Rxf6+ Ke7) 40. Kd3 {[%emt 0:00:01]} Rd1+ {[%emt 0:00:06]} 41. Kc2 {[%emt 0:00:02] Black must now prevent Re3+.} Rd7 {[%emt 0:00:06]} (41... Rh1 $11) 42. a3 {[%emt 0:00:06]} ({Better is} 42. Bc5 $16 {Threatening mate with Re3+.} Ne4 43. Bxb4) 42... Ke5 {[%emt 0:00:04]} (42... Ne4 $11 {remains equal.}) 43. axb4 {[%emt 0:00:02]} Ne4 {[%emt 0:00:02]} 44. Be3 {[%emt 0:00:03] Against Rd2+} Ng5 $2 {[%emt 0:00:08] A mistake that costs the game.} (44... Kd6 $16 {might work better.} 45. Rf4 Ke5) 45. Rf5+ {[%emt 0:00:01]} Ke4 {[%emt 0:00:01]} 46. Bxg5 {[%emt 0:00:02]} fxg5 {[%emt 0:00:01]} 47. Rxg5 $18 {[%emt 0:00:01] KR-KR} f6 {[%emt 0:00:02]} 48. Rf5 {[%emt 0:00:02]} Rd6 {[%emt 0:00:02]} 49. Rh5 {[%emt 0:00:02]} Rd7 {[%emt 0:00:01]} 50. b5 {[%emt 0:00:01]} axb5 {[%emt 0:00:03]} 51. Rxb5 {[%emt 0:00:01]} Kd4 {[%emt 0:00:21]} 52. Rf5 {[%emt 0:00:03]} Rd6 {[%emt 0:00:01]} 53. Rh5 {[%emt 0:00:01]} Rd7 {[%emt 0:00:02]} 54. Kb2 {[%emt 0:00:02]} b6 {[%emt 0:00:17]} (54... Re7 $142 55. Rd5+ Ke4) 55. Rb5 {[%emt 0:00:16]} Rd6 {[%emt 0:00:06]} 56. Rf5 {[%emt 0:00:02]} Re6 {[%emt 0:00:05]} 57. Ka3 {[%emt 0:00:03]} Kc3 {[%emt 0:00:03]} 58. Rf3+ {[%emt 0:00:01]} Kc2 {[%emt 0:00:02]} 59. Kb4 {[%emt 0:00:02]} h6 {[%emt 0:00:06]} 60. Kb5 {[%emt 0:00:04] Strongly threatening b4.} Kd2 {[%emt 0:00:02]} 61. b4 {[%emt 0:00:03][%cal Bb3b4,Bb4c5][%mdl 32]} Ke2 {[%emt 0:00:02]} 62. Rf5 {[%emt 0:00:03] aiming for c5.} Kd3 {[%emt 0:00:09]} 63. c5 {[%emt 0:00:08]} bxc5 {[%emt 0:00:01]} 64. bxc5 {[%emt 0:00:01] Weighted Error Value: White=0.15 (very precise) /Black=0.47} 1-0

[Event "European Corporate Championship 2022"]
[Site "Rotterdam"]
[Date "2022.06.19"]
[Round "7.2"]
[White "Lambrechts, Koen"]
[Black "Oudshoorn, Arres"]
[Result "1-0"]
[ECO "B27"]
[WhiteElo "2349"]
[BlackElo "2137"]
[Annotator "TA"]
[PlyCount "70"]
[EventDate "2022.06.18"]
[EventType "team-tourn"]
[EventCountry "NED"]
[SourceTitle "playchess.com"]
[Source "ChessBase"]
[SourceQuality "1"]
[TimeControl "900+5"]

{[%evp 12,70,0,-25,29,-8,8,0,0,0,-8,0,7,-3,0,-21,0,0,0,0,106,90,233,243,260,247,274,277,300,317,329,327,311,314,343,306,452,435,459,439,769,769,793,792,791,788,779,764,888,878,905,891,1135,1133,29994,1345,29989,1987,29990,940,2827]} 1. e4 {[%emt 0:00:02]} c5 {[%emt 0:00:01]} 2. Nf3 {[%emt 0:00:02]} g6 {[%emt 0:00:01]} 3. Bc4 {[%emt 0:01:16]} Nc6 {[%emt 0:00:12]} 4. O-O {[%emt 0:00:08]} Bg7 {[%emt 0:00:01]} 5. c3 {[%emt 0:00:21]} d6 {[%emt 0:00:42]} 6. h3 {[%emt 0:00:14]} Nf6 {[%emt 0:00:05]} 7. Re1 {[%emt 0:00:02] [#]} O-O {[%emt 0:00:19] B27: Sicilian: 2 Nf3, unusual Black 2nd moves.} (7... Nxe4 $142 $1 8. Bxf7+ (8. Rxe4 d5 $17) 8... Kxf7 9. Rxe4 d5) 8. d3 {[%emt 0:00:14]} Na5 {[%emt 0:00:57]} 9. Bb5 {[%emt 0:00:12]} a6 {[%emt 0:00:25] The position is equal.} 10. Ba4 {[%emt 0:00:01]} b5 {[%emt 0:00:00]} 11. Bc2 {[%emt 0:00:01]} e5 {[%emt 0:00:15]} 12. Nbd2 {[%emt 0:00:10]} Qc7 {[%emt 0:00:38]} 13. Nf1 {[%emt 0:00:09]} h6 {[%emt 0:00:20] [#]} 14. Bd2 $146 {[%emt 0:00:21][%cal Bc1d2,Bd2a5,Ba5c7][%mdl 32]} ({Predecessor:} 14. Ne3 Nc6 15. Bd2 Be6 16. Bb3 Qd7 17. Qc1 Kh7 18. c4 Nd4 19. Bd1 Nxf3+ 20. Bxf3 {1-0 (40) Boruchovsky,A (2559)-Dankhazi,A (2300) Budapest 2018}) 14... Be6 {[%emt 0:00:11]} 15. Rc1 {[%emt 0:00:31]} Bxa2 {[%emt 0:01:23] [#]} (15... Nc6 $11 {keeps the balance.}) 16. c4 $1 $16 {[%emt 0:01:11]} bxc4 {[%emt 0:00:15] Loses the game.} (16... Nxc4 $16 {might work better.} 17. dxc4 Bxc4) 17. Ra1 $18 {[%emt 0:00:19]} cxd3 {[%emt 0:00:20]} 18. Bxd3 {[%emt 0:00:03]} Bb3 {[%emt 0:00:09]} 19. Bxa5 {[%emt 0:00:10]} Bxd1 {[%emt 0:00:28]} 20. Bxc7 {[%emt 0:00:01]} Bxf3 {[%emt 0:00:01]} 21. gxf3 {[%emt 0:00:02]} Rfc8 {[%emt 0:00:26]} 22. Ba5 {[%emt 0:00:15]} ({Weaker is} 22. Bxd6 Rd8 $11) 22... c4 {[%emt 0:01:18]} 23. Bc2 {[%emt 0:00:15][%cal Bd3c2,Bc2e4,Be4d5][%mdl 32]} d5 {[%emt 0:00:02]} (23... Nh5 $142 24. Red1 Bf8) 24. exd5 {[%emt 0:00:06]} Nxd5 {[%emt 0:00:01]} 25. Be4 {[%emt 0:00:03]} Rc5 {[%emt 0:00:42]} (25... Nf4 $142 26. Bxa8 Rxa8) 26. Red1 {[%emt 0:00:02]} Rb8 {[%emt 0:00:23]} 27. Rxd5 {[%emt 0:00:19]} Rxd5 {[%emt 0:01:21]} 28. Bxd5 {[%emt 0:00:03] A strong pair of Bishops.} Rxb2 {[%emt 0:00:01]} 29. Bc3 {[%emt 0:00:21]} Rc2 {[%emt 0:00:07]} 30. Bd2 {[%emt 0:01:08]} c3 {[%emt 0:02:40]} 31. Be3 {[%emt 0:00:03]} Kf8 {[%emt 0:01:16]} 32. Rxa6 {[%emt 0:00:35] Threatens to win with Ra8+.} f5 {[%emt 0:00:06]} 33. Rc6 {[%emt 0:00:29]} (33. Bc5+ $142 Ke8 34. Ra7 Kd8 35. Bc6 Ra2 36. Bb6+ Kc8 37. Rxa2 Bh8 38. Ra8#) 33... f4 {[%emt 0:00:16]} 34. Bc5+ {[%emt 0:00:02]} Ke8 {[%emt 0:00:01]} 35. Be4 {[%emt 0:00:02]} (35. Rc7 $142 Ra2 36. Bc6+ Kd8 37. Rd7+ Kc8 38. Bb6 Bf6 39. Rf7 Bd8 40. Rf8 Rd2 41. Nxd2 cxd2 42. Rxd8#) 35... Rd2 {[%emt 0:00:51] Weighted Error Value: White=0.09 (flawless) /Black=0.99} 1-0

[Event "European Corporate Championship 2022"]
[Site "Rotterdam"]
[Date "2022.06.19"]
[Round "7.3"]
[White "Lie, Michael"]
[Black "Rietman, Frits"]
[Result "1/2-1/2"]
[ECO "D00"]
[WhiteElo "1798"]
[BlackElo "2237"]
[Annotator "NA RC"]
[PlyCount "72"]
[EventDate "2022.06.18"]
[EventType "team-tourn"]
[EventCountry "NED"]
[SourceTitle "playchess.com"]
[Source "ChessBase"]
[SourceQuality "1"]
[TimeControl "900+5"]

1. d4 {[%emt 0:00:06]} d5 {[%emt 0:00:10]} 2. Bf4 {[%emt 0:00:06]} Nf6 {[%emt 0:00:11]} 3. e3 {[%emt 0:00:03]} c6 {[%emt 0:00:22]} 4. Bd3 {[%emt 0:00:10]} Bg4 {[%emt 0:00:15]} 5. f3 {[%emt 0:00:01]} Bh5 {[%emt 0:00:07]} 6. c4 {[%emt 0:00:03]} e6 {[%emt 0:00:20]} 7. Qb3 {[%emt 0:00:03]} Qb6 {[%emt 0:00:37]} 8. c5 {[%emt 0:00:02]} Qxb3 {[%emt 0:01:07]} 9. axb3 {[%emt 0:00:03]} Nfd7 {[%emt 0:01:13]} 10. b4 {[%emt 0:00:45]} Bg6 {[%emt 0:01:47]} 11. Kd2 {[%emt 0:00:09]} Be7 {[%emt 0:00:41]} 12. Nc3 {[%emt 0:00:11]} Bf6 {[%emt 0:00:13]} 13. Bxb8 {[%emt 0:01:04]} Nxb8 {[%emt 0:00:22]} 14. f4 {[%emt 0:00:03]} Bxd3 {[%emt 0:00:36]} 15. Kxd3 {[%emt 0:00:02]} g5 {[%emt 0:00:09]} 16. g3 {[%emt 0:00:31]} Ke7 {[%emt 0:00:36]} 17. Nf3 {[%emt 0:00:02]} gxf4 {[%emt 0:00:16]} 18. gxf4 {[%emt 0:00:02]} Nd7 {[%emt 0:00:26]} 19. Ra2 {[%emt 0:01:15]} b6 {[%emt 0:00:34]} 20. Rha1 {[%emt 0:00:23]} bxc5 {[%emt 0:00:32]} 21. bxc5 {[%emt 0:00:09]} Rhb8 {[%emt 0:00:25]} 22. Kc2 {[%emt 0:02:59]} Rb7 {[%emt 0:00:02]} 23. Ra6 {[%emt 0:00:02]} Nb8 {[%emt 0:00:06]} 24. R6a4 {[%emt 0:00:14]} Nd7 {[%emt 0:00:49]} 25. Ne1 {[%emt 0:00:01]} Rab8 {[%emt 0:00:19]} 26. Nd3 {[%emt 0:00:02]} Rg8 {[%emt 0:00:04]} 27. Nb4 {[%emt 0:01:12]} a5 {[%emt 0:00:33]} 28. Nxc6+ {[%emt 0:00:08]} Kf8 {[%emt 0:00:04]} 29. Nd1 {[%emt 0:00:27]} Rg2+ {[%emt 0:00:09]} 30. Kc1 {[%emt 0:00:01]} Nxc5 {[%emt 0:01:29]} 31. dxc5 {[%emt 0:02:18]} Bxb2+ {[%emt 0:00:01]} 32. Nxb2 {[%emt 0:00:02]} Rbxb2 {[%emt 0:00:01]} 33. Rd4 {[%emt 0:01:34]} Rgc2+ {[%emt 0:00:13]} 34. Kd1 {[%emt 0:00:02]} Rxh2 {[%emt 0:00:02]} 35. Kc1 {[%emt 0:00:06]} Rhc2+ {[%emt 0:00:02]} 36. Kd1 {[%emt 0:00:01]} Rh2 {[%emt 0:00:01]} 1/2-1/2

[Event "European Corporate Championship 2022"]
[Site "Rotterdam"]
[Date "2022.06.19"]
[Round "7.5"]
[White "Schelvis, Richard"]
[Black "Barski, Radoslaw"]
[Result "0-1"]
[ECO "E62"]
[WhiteElo "2157"]
[BlackElo "2434"]
[Annotator "TA"]
[PlyCount "42"]
[EventDate "2022.06.18"]
[EventType "team-tourn"]
[EventCountry "NED"]
[SourceTitle "playchess.com"]
[Source "ChessBase"]
[SourceQuality "1"]
[TimeControl "900+5"]

{[%evp 19,42,0,0,-6,-5,-5,-15,-15,0,0,0,-23,-32,-20,0,-60,-47,-210,-212,-376,-368,-411,-411,-379,-383]} 1. d4 {[%emt 0:00:03]} Nf6 {[%emt 0:00:04]} 2. Nf3 {[%emt 0:00:02]} g6 {[%emt 0:00:15]} 3. g3 {[%emt 0:00:03]} Bg7 {[%emt 0:00:01]} 4. Bg2 {[%emt 0:00:01]} O-O {[%emt 0:00:03]} 5. O-O {[%emt 0:00:03]} d6 {[%emt 0:00:03]} 6. c4 {[%emt 0:00:02]} Nc6 {[%emt 0:00:09]} 7. Nc3 {[%emt 0:00:02]} e5 {[%emt 0:00:05]} 8. dxe5 {[%emt 0:00:53]} dxe5 {[%emt 0:00:02]} 9. Qxd8 {[%emt 0:01:42]} Rxd8 {[%emt 0:00:02]} 10. Bg5 {[%emt 0:00:01]} Be6 {[%emt 0:00:09]} 11. b3 {[%emt 0:00:28] E62: King's Indian: Fianchetto: 6...c6 and Panno Variation (6...Nc6) without ...a6.} h6 {[%emt 0:01:48]} 12. Bxf6 {[%emt 0:00:34]} Bxf6 {[%emt 0:00:01]} 13. Rad1 {[%emt 0:00:16] The position is equal.} Bg7 {[%emt 0:00:18]} 14. Nb5 {[%emt 0:01:16]} Rdc8 {[%emt 0:00:25] [#]} 15. e3 $146 {[%emt 0:00:30]} ({Predecessor:} 15. Ne1 f5 16. Bxc6 bxc6 17. Nc3 Rd8 18. Nc2 Bf8 19. f4 exf4 20. gxf4 Rxd1 21. Rxd1 {0-1 (54) Norowitz,Y (2420)-Theodorou,N (2566) Las Vegas 2021}) 15... a6 {[%emt 0:00:16]} 16. Nc3 {[%emt 0:00:03]} f5 {[%emt 0:00:04]} 17. Nh4 {[%emt 0:00:34]} ({White should try} 17. Bh3 $11) 17... e4 $36 {[%emt 0:00:34][%mdl 2048] White is under pressure.} 18. Nd5 {[%emt 0:01:10] [#] White does not recover from this.} (18. Na4 $1 $15) 18... g5 $1 $19 {[%emt 0:00:16][%cal Bg6g5,Bg5h4][%mdl 32]} 19. b4 $2 {[%emt 0:02:42]} (19. f3) 19... gxh4 {[%emt 0:00:09] Black is winning.} 20. b5 {[%emt 0:00:02]} axb5 {[%emt 0:00:18]} 21. cxb5 {[%emt 0:00:02]} Bxd5 {[%emt 0:00:01] Weighted Error Value: White=0.54/Black=0.03 (flawless)} 0-1